Cogmind - Beta 14 @@@ ROGUE MODE // 2025.01.02 @ 04:44:28 Player: Willow Result: Destroyed by 8R-AWN with 8R-AWN's Boregun Performance ------------- Evolutions (0) 0 Regions Visited (3) 600 Robots Destroyed (32) 160 Value Destroyed (596) 596 Prototype IDs (3) 60 Alien Tech Used (0) 0 Bonus (300) 300 TOTAL SCORE: 1716 Bonus ------- Aligned with FarCom 300 Cogmind --------- Core Integrity 0/250 Matter 250/300 Energy 96/100 System Corruption 2% Temperature Cool (4) Movement Walking (45) Location -10/Exiles Parts ------- > --- POWER (1) -------- (None) > --- PROPULSION (2) --- Potential Leg Potential Leg > --- UTILITY (2) ------ Large Storage Unit Core Shielding > --- WEAPON (2) ------- AWS/Gauss > --- INVENTORY (15) --- Wheel Wheel Compact Wheel High-capacity Matter Pod (200) Sensor Array Improved Terrain Scanner Terrain Scan Processor Targeting Computer Medium Armor Plating Medium Armor Plating Improved Assault Rifle Improved Assault Rifle Datajack Peak State ------------ > --- POWER ------------ Ion Engine > --- PROPULSION ------- Potential Leg Potential Leg > --- UTILITY ---------- Large Storage Unit Core Shielding > --- WEAPON ----------- AWS/Gauss > --- INVENTORY -------- Light Ion Engine Wheel Wheel Compact Wheel High-capacity Matter Pod Sensor Array Improved Terrain Scanner Terrain Scan Processor Targeting Computer Medium Armor Plating Medium Armor Plating Improved Assault Rifle Improved Assault Rifle Datajack [Rating: 41] Favorites ----------- Power Ion Engine Engine Ion Engine Propulsion Compact Wheel Leg Potential Leg Wheel Compact Wheel Utility Seismic Detector Device Seismic Detector Storage Large Storage Unit Processor Signal Interpreter Protection Core Shielding Weapon Improved Assault Rifle Energy Gun Medium Laser Ballistic Gun Improved Assault Rifle Special Melee Weapon Datajack Build | -11 -10 -10 -10 ------- Run | Yrd Mat Min Exi Slots Evolved . | . . . . Power . | . . . . Propulsion . | . . . . Utility . | . . . . Weapon . | . . . . Parts Attached 29 | 7 16 1 5 Power 4 | 1 2 . 1 Engine 4 | 1 2 . 1 Core . | . . . . Reactor . | . . . . Propulsion 7 | 2 3 . 2 Treads . | . . . . Leg 2 | . . . 2 Wheel 5 | 2 3 . . Hover . | . . . . Flight . | . . . . Utility 7 | 2 3 1 1 Device 1 | 1 . . . Storage 3 | 1 2 . . Processor 1 | . . 1 . Hackware . | . . . . Protection 2 | . 1 . 1 Artifact . | . . . . Weapon 11 | 2 8 . 1 Energy Gun 2 | . 2 . . Energy Cannon . | . . . . Ballistic Gun 8 | 2 5 . 1 Ballistic Cannon . | . . . . Launcher . | . . . . Special Weapon . | . . . . Impact Weapon . | . . . . Slashing Weapon . | . . . . Piercing Weapon . | . . . . Special Melee Weapon 1 | . 1 . . Unidentified Prototypes 3 | . 1 . 2 Parts Lost 3 | . 1 . 2 Power 2 | . . . 2 Propulsion 1 | . 1 . . Utility . | . . . . Weapon . | . . . . Highest Loss Streak 2 | . 1 . 2 To Critical Strikes . | . . . . Average Slot Usage (%) 99 | . 99 100 94 Engine 13 | . 14 14 13 Wheel 27 | . 27 28 23 Device 9 | . 12 . . Storage 14 | . 14 14 14 Protection 3 | . 1 14 2 Energy Gun 11 | . 10 14 11 Ballistic Gun 16 | . 17 14 12 Peak Build Rating 41 | 7 12 11 41 Average Rating 10 | 5 9 11 14 On Entrance 7 | . 7 11 11 Naked Turns . | . . . . Heaviest Build 91 | 13 91 31 36 Greatest Support 60 | 26 26 26 60 Greatest Overweight (x) 3 | . 3 1 1 Average Overweight (x) . | . . 1 . Largest Inventory Capacity 25 | 8 25 15 15 Average Capacity 15 | 6 15 15 15 Most Carried 15 | 4 15 15 15 Average Carried 11 | 1 10 15 14 Final Capacity 15 | 8 15 15 15 Final Carried 15 | 4 15 15 13 Class Distribution -------------------- 100% | Mutant Dominant Class ---------------- Mutant | -10/Materials Mutant | -10/Mines Mutant | -10/Exiles Resources | -11 -10 -10 -10 ----------- Run | Yrd Mat Min Exi Matter Collected 1050 | 258 792 . . Remotely . | . . . . Salvage Created 937 | 48 889 . . Parts 80 | 9 71 . . Haulers Intercepted 1 | . 1 . . Recyclers Shooed 1 | . 1 . . Parts Field Recycled . | . . . . Retrieved Matter . | . . . . Parts Self-Destructed . | . . . . Prevented . | . . . . Kills | -11 -10 -10 -10 ------- Run | Yrd Mat Min Exi Combat Hostiles Destroyed 18 | . 18 . . Guns 18 | . 18 . . Classes Destroyed 9 | 1 8 . . Worker 3 | . 3 . . Builder 2 | . 2 . . Tunneler 2 | 2 . . . Hauler 1 | . 1 . . Recycler 1 | . 1 . . Operator 2 | . 2 . . Watcher 3 | . 3 . . Swarmer 6 | . 6 . . Grunt 12 | . 12 . . Best Kill Streak 3 | 2 3 . . Combat Bots Only 3 | . 3 . . Max Kills in Single Turn 2 | 1 2 . . Gunslinging . | . . . . Exploded . | . . . . Melee . | . . . . Uniques/NPCs Destroyed . | . . . . Combat | -11 -10 -10 -10 -------- Run | Yrd Mat Min Exi Hostile Shots Fired 129 | . 82 . 47 Missed 50 | . 25 . 25 Damage Taken 941 | . 619 . 322 Core 257 | . 175 . 82 Absorbed by Shields . | . . . . Redirected to Shielding 14 | . . . 14 Core Remaining (%) 100 | 100 . . . Volleys Fired 90 | 5 85 . . Largest 2 | 2 2 . . Hottest 73 | 40 73 . . Shots Fired 181 | 10 170 . 1 Gun 181 | 10 170 . 1 Cannon . | . . . . Launcher . | . . . . Special . | . . . . Kinetic 133 | 10 123 . . Thermal 48 | . 47 . 1 Explosive . | . . . . Electromagnetic . | . . . . Robot Hit Streak 21 | 6 21 . 5 Robot Miss Streak 4 | 1 4 . . Penetration Max . | . . . . Secondary Targets 1 | . 1 . . Max Gunslinging Chain 1 | . 1 . . Shots Hit Robots 111 | 8 102 . 1 Core Hits 46 | 2 43 . 1 Critical Kills . | . . . . Critical Parts Destroyed . | . . . . Critical Strikes 2 | . 2 . . Burn 2 | . 2 . . Melee Attacks 2 | . 2 . . Impact . | . . . . Slashing . | . . . . Piercing . | . . . . Sneak Attacks 2 | . 2 . . Combat Hostiles . | . . . . Follow-up Attacks . | . . . . Damage Inflicted 1505 | 116 1377 . 12 Guns 1495 | 116 1367 . 12 Cannons . | . . . . Explosions . | . . . . Melee . | . . . . Ramming 10 | . 10 . . Kinetic 1063 | 116 947 . . Thermal 432 | . 420 . 12 Explosive . | . . . . Electromagnetic . | . . . . Impact . | . . . . Slashing . | . . . . Piercing . | . . . . Highest Corruption 2 | . 2 2 2 Average Corruption 2 | . 2 2 2 Corruption Purged . | . . . . Corruption Blocked . | . . . . Effects 21 | . 16 4 1 Message Errors 6 | . 5 1 . Matter Fused 6 | . 6 . . Heat Flow Errors 1 | . . 1 . Energy Discharges 4 | . 3 1 . Data Loss (major) 1 | . 1 . . Misfires 2 | . 1 . 1 Alerts 1 | . . 1 . Overload Shots . | . . . . Overflow Damage . | . . . . Projectiles . | . . . . Explosions . | . . . . Melee . | . . . . Knockbacks . | . . . . Impact . | . . . . Kinetic . | . . . . Secondary . | . . . . Self-Inflicted Damage 3 | . 3 . . Shots . | . . . . Rammed 6 | . 6 . . Targets Rammed 6 | . 6 . . Kicked . | . . . . Crushed . | . . . . Highest Temperature 188 | . 148 188 10 Average Temperature 35 | . 32 98 6 Received Heat Transfer 266 | . 246 . 20 Siege Activations . | . . . . Robots Corrupted . | . . . . Combat Hostiles . | . . . . Parts Fried . | . . . . Impact Corruptions . | . . . . Robots Melted . | . . . . Combat Hostiles . | . . . . Parts Melted 1 | . 1 . . Heat Transferred 1406 | . 1369 . 37 Parts Sabotaged . | . . . . Parts Stolen . | . . . . Parts Stripped . | . . . . Power Chain Reactions . | . . . . Alert | -11 -10 -10 -10 ------- Run | Yrd Mat Min Exi Peak Influence 379 | 10 379 78 . Initial 78 | . 6 78 . Average 173 | 1 192 78 . Maximum Alert Level 1 | . 1 . . Low Security (%) 50 | 100 41 100 . Level 1 49 | . 58 . . Level 2 . | . . . . Level 3 . | . . . . Level 4 . | . . . . Level 5 . | . . . . High Security . | . . . . Max Security . | . . . . Squads Dispatched 4 | . 4 . . Investigation 2 | . 2 . . Extermination . | . . . . Reinforcement 2 | . 2 . . Assault . | . . . . Garrison . | . . . . Intercept . | . . . . Searches Triggered . | . . . . Construction Impeded . | . . . . Haulers Reinforced . | . . . . Active Scanning Responses . | . . . . Cargo Convoy Interrupts . | . . . . Stealth | -11 -10 -10 -10 --------- Run | Yrd Mat Min Exi Distress Signals 7 | . 7 . . Communications Jammed . | . . . . Distress Signals . | . . . . Times Spotted 46 | . 38 . 8 Peak Tracking Total 10 | . 5 . 10 Tactical Retreats 5 | . 5 . . Traps | -11 -10 -10 -10 ------- Run | Yrd Mat Min Exi Traps Triggered 1 | . 1 . . Indirectly . | . . . . Trap Hack Attempts . | . . . . Triggered . | . . . . Disarmed . | . . . . Reprogrammed . | . . . . Reused . | . . . . Traps Extracted . | . . . . Installed . | . . . . Triggered . | . . . . Machines | -11 -10 -10 -10 ---------- Run | Yrd Mat Min Exi Machines Disabled . | . . . . Max in Single Turn . | . . . . Machines Repaired . | . . . . Machines Dismantled . | . . . . Machines Sabotaged . | . . . . Overloaded Fab Kills . | . . . . Hacking | -11 -10 -10 -10 --------- Run | Yrd Mat Min Exi Machines Accessed 6 | . 6 . . Terminals 4 | . 4 . . Fabricators . | . . . . Repair Stations . | . . . . Recycling Units 2 | . 2 . . Scanalyzers . | . . . . Garrison Access . | . . . . Total Hacks 18 | . 18 . . Successful 7 | . 7 . . Failed 11 | . 11 . . Catastrophic 1 | . 1 . . Database Lockouts . | . . . . Manual 18 | . 17 . 1 Terminals 12 | . 12 . . Fabricators . | . . . . Repair Stations . | . . . . Recycling Units 6 | . 6 . . Scanalyzers . | . . . . Garrison Access . | . . . . Terminal Hacks 1 | . 1 . . Robot Analysis 1 | . 1 . . Fabricator Hacks . | . . . . Repair Station Hacks . | . . . . Recycling Unit Hacks 1 | . 1 . . Retrieve Components 1 | . 1 . . Scanalyzer . | . . . . Garrison Access Hacks . | . . . . Unauthorized Hacks 5 | . 5 . . Terminals 3 | . 3 . . Botnet 3 | . 3 . . Fabricators . | . . . . Repair Stations . | . . . . Recycling Units 2 | . 2 . . Tunnel 2 | . 2 . . Scanalyzers . | . . . . Garrison Access . | . . . . Data Cores Recovered . | . . . . Used . | . . . . Hacking Detections 6 | . 6 . . Full Trace Events . | . . . . Feedback Events . | . . . . Feedback Blocked . | . . . . Robot Schematics Acquired . | . . . . Robots Built . | . . . . Authchips . | . . . . Time . | . . . . Total Robot Build Rating . | . . . . Part Schematics Acquired . | . . . . Parts Built . | . . . . Authchips . | . . . . Time . | . . . . Total Part Build Rating . | . . . . Parts Repaired . | . . . . Time . | . . . . Parts Recycled . | . . . . Recycled Matter . | . . . . Retrieved Matter . | . . . . Retrieved Components 10 | . 10 . . Parts Scanalyzed . | . . . . Part Schematics Acquired . | . . . . Parts Damaged . | . . . . Bothacking | -11 -10 -10 -10 ------------ Run | Yrd Mat Min Exi Used RIF Installer . | . . . . Robots Hacked 1 | . 1 . . Non-combat 1 | . 1 . . Combat . | . . . . Robot Hacks Applied 1 | . 1 . . find_recycling 1 | . 1 . . Relay Couplers Released . | . . . . Fabnet Peak Effective % . | . . . . Robots Rewired . | . . . . Allies Hacked . | . . . . Hacks Repelled . | . . . . Allies | -11 -10 -10 -10 -------- Run | Yrd Mat Min Exi Total Allies . | . . . . Largest Group . | . . . . Highest-Rated Group . | . . . . Highest-Rated Ally . | . . . . Total Orders . | . . . . Ally Attacks . | . . . . Total Damage . | . . . . Kills . | . . . . Allies Corrupted . | . . . . Allies Melted . | . . . . Intel | -11 -10 -10 -10 ------- Run | Yrd Mat Min Exi Robot Analysis Total 1 | . 1 . . Derelict Logs Recovered 2 | . . 2 . Drone Launches . | . . . . Drone Recoveries . | . . . . Exploration | -11 -10 -10 -10 ------------- Run | Yrd Mat Min Exi Turns Passed 2560 | 64 2020 293 183 Spaces Moved 1354 | 39 848 273 194 Core 1 | 1 . . . Treads . | . . . . Legs 49 | . . . 49 Wheels 1304 | 38 848 273 145 Hover . | . . . . Flight . | . . . . Fastest Speed 45 | 50 90 105 45 Average Speed 102 | 89 104 105 89 Slowest Speed 135 | 100 135 105 105 Overloaded Moves 48 | . . . 48 Propulsion Burnouts . | . . . . Robots Hopped . | . . . . Cave-ins Triggered . | . . . . Exploration Rate (%) 52 | 4 96 64 44 Regions Visited 3 Branch Regions 2 Pre-discovered Areas 3 | . 2 1 . Known Exits Taken 1 | . . 1 . Unknown Exits Taken 2 | 1 1 . . Scrap Searched 2 | . . 2 . Spaces Dug . | . . . . Terrain Destroyed . | . . . . Melee . | . . . . Projectile . | . . . . AOE . | . . . . Terrain Rammed . | . . . . Walls Destroyed . | . . . . Machines Disabled . | . . . . Actions | -11 -10 -10 -10 --------- Run | Yrd Mat Min Exi Total 2346 | 54 1811 278 203 Wait 824 | . 819 5 . Move 1351 | 38 847 272 194 Hop . | . . . . Pick Up 24 | 4 20 . . Fast Attach 14 | 7 4 . 3 Attach 3 | . 2 . 1 Detach . | . . . . Swap 12 | . 10 1 1 Drop 20 | . 16 . 4 Fire 90 | 5 85 . . Melee 2 | . 2 . . Ram 6 | . 6 . . Kick . | . . . . Crush . | . . . . Escape Stasis . | . . . . Rewire . | . . . . Trap . | . . . . Miscellaneous . | . . . . Route ------- -11/Scrapyard -10/Materials (discovered 5 exits: [*Mat x3] / [*Min x2]) -10/Mines (discovered 3 exits: [*Mat x2] / *Exi) -10/Exiles (discovered 1 exit: *Min) History --------- Turn | Location | Event 20 | -11/Scrapyard | Discovered new exit (range 16) 65 | -11/Scrapyard | Entered Materials 309 | -10/Materials | Build established: Mutant 376 | -10/Materials | Discovered new exit (range 13) 519 | -10/Materials | Discovered new exit (range 7) 595 | -10/Materials | Discovered new exit (range 14) 945 | -10/Materials | Core integrity fell below 50% 1005 | -10/Materials | Discovered new exit (range 12) 1155 | -10/Materials | Discovered new exit (range 15) 2085 | -10/Materials | Entered Mines 2156 | -10/Mines | Discovered new exit (range 15) 2266 | -10/Mines | Learned Materials terminal intel 2295 | -10/Mines | Discovered new exit (range 10) 2310 | -10/Mines | Learned 2 Materials zone layouts 2371 | -10/Mines | Deemed a non-threat by the Exiles lab entrance 2371 | -10/Mines | Discovered new exit (range 5) 2377 | -10/Mines | Identified exit to Exiles 2378 | -10/Mines | Entered Exiles 2395 | -10/Exiles | Discovered new exit (range 15) 2409 | -10/Exiles | Identified exit to Mines 2429 | -10/Exiles | Met 8R-AWN 2446 | -10/Exiles | Met EX-HEX 2489 | -10/Exiles | Met EX-BIN 2501 | -10/Exiles | Aligned with FarCom system 2502 | -10/Exiles | Given EX-Vault access code 2507 | -10/Exiles | Attacked by the Exiles 2527 | -10/Exiles | Opened EX-Vault 2533 | -10/Exiles | Found Prototype Leg 2533 | -10/Exiles | Identified Potential Leg 2536 | -10/Exiles | Core integrity fell below 20% 2536 | -10/Exiles | Found Potential Leg 2540 | -10/Exiles | Found Prototype Ballistic Gun 2540 | -10/Exiles | Identified AWS/Gauss 2561 | -10/Exiles | Destroyed by 8R-AWN with 8R-AWN's Boregun Last Messages --------------- 02536_ Dropped Wheel. 02536_ Acquired Potential Leg. 02540_ Acquired Prototype Ballistic Gun. 02540_ Identified AWS/Gauss. 02543_ Ion Engine destroyed. 02545_ Knocked back. 02551_ Penetrated by HV Slug. 02553_ HV Slug penetrates Machine. 02553_ HV Slug penetrates Wall. 02553_ Penetrated by HV Slug. 02557_ HV Slug penetrates Machine. 02557_ Machine disabled. 02557_ HV Slug penetrates Wall. 02558_ Lgt. Ion Engine destroyed. 02559_ HV Slug penetrates Machine. 02559_ Machine disabled. 02559_ HV Slug penetrates Wall. 02559_ HV Slug penetrates Machine. 02559_ HV Slug penetrates Wall. 02561_ Penetrated by HV Slug. Map ----- +----------------------------------------------------+ | ??????????????????"""" ## #?????????????????? | | ?????????????????#""X" #?????????????????? | | ?????????????????#" #?????????????????? | | ?????????????????#" ## #?????????????????? | | ?????????????????#""""""?# #?#########???????? | | ??????????????????#"###??# #?#"""""""#???????? | | ?????????????????????????# #?#"""""""#???????? | | ?????????????????????????# #?#"""""""#???????? | | ????????????????????????## ###"" """"#???????? | | ????????????????????????#" """"#???????? | | ????????????????????????#" """#???????? | | ????????????????????????#" """#???????? | | ????????????????????????#" """#???????? | | ????????????????????????#" """#???????? | | ????????????????????????#" """#???????? | | ????????????????????????## """"???????? | | ?????????????????????????# """#???????? | | ?????????????????????????# "X" """"???????? | | ?????????????????????????#" g """ #???????? | | ?????????????????????????#" """""""""#???????? | | ????????????????????????## ###########???????? | | ???????????????????????## " #?????????????????? | | ??????????????????######"" #?????????????????? | | ??????????????????#""""""" ##????????????????? | | ?????????????????"""" " "" ##???#########???? | | ???????????????"" """ "@ #####"""""""""##? | | ???????????? " " " """ """"## | | ???????????? "" " # | | ???????????? " """# | | ???????????? " "# | | ???????????? " "# | | ???????????? "" | | ???????????? """"" " | | ????????????? ;#####""" | | ????????????? ""##????#####""" | | ?????????????? """#??????????##""" | | ?????????????? ""??????????????#"""" | | ????????????????????????????????#"" | | ???????????????????????????????#"""" | | ??????????????????????????????"" | | ????????????????????????????"" | | ??????????????????????????? | | ???????????????????????????? | | ??????????????????????????? " | | ??????????????????????????? "" """ | | ??????????????????????????? ##""" " " ""#" | | ???????????????????????????????####""" """##"""""" | | ??????????????????????????????????###""""#?####### | | ????????????????????????????????????####?????????? | | ?????????????????????????????????????????????????? | +----------------------------------------------------+ Best States ------------- Heat Dissipation 25 Energy Generation 10 Energy Capacity 250 Matter Stores 300 Matter Capacity 300 Sight Range 16 Terrain Scan Density 10 Core Shielding 20 Evasion (%) 66 Item Schematics ----------------- None Robot Schematics ------------------ None Fabricated ------------ Nothing Alien Tech Used ----------------- None Achievements -------------- None Challenges ------------ None Game ------ Seed BraceMultinovaChainsword Manual? 0 Play Time 00:25:06 Cumulative 49.6 hours Start 2025.01.02 @ 03:46:49 End 2025.01.02 @ 04:44:28 Sessions 1 Manual Loads 0 Difficulty Rogue Special Mode None Game No. 39 Rogue 24 Adventurer 15 Explorer 0 Win Type - Total 0 Types 0/0/0/0/0/0/0/0/0 Lore% 31 Gallery% 33 Achievement% 32 Wizard Run 0 Options --------- Layout 1 ASCII 0 Keyboard 0 Movement Mouse Keybinds 0 Fullscreen 1 Font 24/Smallcaps Map View 50x35 Zoom Use 0% Tactical HUD 1 Map Filters NONE Filters NONE Steam 1 RUN: 4713af24-3321-4513-b868-5ee787fd2e61